[Event "Late-Titled-Tuesday-Blitz-September-12-2023"]
[Site "Chess.com"]
[Date "2023.09.12"]
[Round "4"]
[White "jcmesafischer"]
[Black "Aslanov_Umid"]
[Result "0-1"]
[WhiteElo "2367"]
[BlackElo "2559"]
[TimeControl "180+1"]
[EndTime "14:37:38 PDT"]
[Termination "Aslanov_Umid won by checkmate"]

1. Nf3 {[%clk 0:03:00.9]} 1... d5 {[%clk 0:02:59.7]} 2. g3 {[%clk 0:02:35.3]}
2... Nf6 {[%clk 0:02:59.7]} 3. d3 {[%clk 0:02:32.5]} 3... c6 {[%clk 0:02:58.1]}
4. Bg2 {[%clk 0:02:29.4]} 4... Bg4 {[%clk 0:02:58]} 5. O-O {[%clk 0:02:21.8]}
5... Nbd7 {[%clk 0:02:57.7]} 6. c4 {[%clk 0:02:21.6]} 6... dxc4 {[%clk
0:02:56.8]} 7. dxc4 {[%clk 0:02:20.5]} 7... e5 {[%clk 0:02:55.3]} 8. Nc3 {[%clk
0:01:59]} 8... Be7 {[%clk 0:02:48.3]} 9. Qc2 {[%clk 0:01:49.3]} 9... O-O {[%clk
0:02:45.7]} 10. Be3 {[%clk 0:01:46.2]} 10... Re8 {[%clk 0:02:38.8]} 11. a3
{[%clk 0:01:41.9]} 11... a5 {[%clk 0:02:36.4]} 12. Na4 {[%clk 0:01:40.6]} 12...
Qc7 {[%clk 0:02:36.2]} 13. c5 {[%clk 0:01:37.5]} 13... Rad8 {[%clk 0:02:31.6]}
14. Ng5 {[%clk 0:01:24]} 14... h6 {[%clk 0:02:20.7]} 15. Ne4 {[%clk 0:01:22.6]}
15... Nxe4 {[%clk 0:02:18]} 16. Qxe4 {[%clk 0:01:21.9]} 16... Nf6 {[%clk
0:02:16.7]} 17. Qc2 {[%clk 0:01:21.4]} 17... Be6 {[%clk 0:02:10.9]} 18. Rfd1
{[%clk 0:01:16.4]} 18... Bd5 {[%clk 0:02:10.8]} 19. f3 {[%clk 0:01:14.9]} 19...
e4 {[%clk 0:02:00.4]} 20. Bf4 {[%clk 0:01:10.9]} 20... Qc8 {[%clk 0:01:52.8]}
21. fxe4 {[%clk 0:01:06.5]} 21... Bxe4 {[%clk 0:01:48.9]} 22. Bxe4 {[%clk
0:01:02.2]} 22... Nxe4 {[%clk 0:01:49.8]} 23. Rxd8 {[%clk 0:00:58.4]} 23... Bxd8
{[%clk 0:01:48.2]} 24. Rd1 {[%clk 0:00:51.5]} 24... Qe6 {[%clk 0:01:38.6]} 25.
Kg2 {[%clk 0:00:35]} 25... Bg5 {[%clk 0:01:37.2]} 26. Bxg5 {[%clk 0:00:27]}
26... Nxg5 {[%clk 0:01:38.1]} 27. Nc3 {[%clk 0:00:25]} 27... Qh3+ {[%clk
0:01:17.7]} 28. Kg1 {[%clk 0:00:20.4]} 28... Qe6 {[%clk 0:01:11.5]} 29. Qd3
{[%clk 0:00:14.7]} 29... Qe5 {[%clk 0:01:10]} 30. Qd4 {[%clk 0:00:12.4]} 30...
Qe6 {[%clk 0:00:48.3]} 31. Kg2 {[%clk 0:00:09.1]} 31... Qh3+ {[%clk 0:00:38.8]}
32. Kg1 {[%clk 0:00:09.2]} 32... Qh5 {[%clk 0:00:35.9]} 33. Rd2 {[%clk 0:00:08]}
33... Ne6 {[%clk 0:00:30.9]} 34. Qd7 {[%clk 0:00:03.5]} 34... Qxc5+ {[%clk
0:00:31.2]} 35. Kg2 {[%clk 0:00:03.1]} 35... Qe7 {[%clk 0:00:29.8]} 36. Qxe7
{[%clk 0:00:02.9]} 36... Rxe7 {[%clk 0:00:30.7]} 37. Kf3 {[%clk 0:00:02.4]}
37... f5 {[%clk 0:00:28.1]} 38. h4 {[%clk 0:00:02]} 38... Kf7 {[%clk 0:00:28.4]}
39. e3 {[%clk 0:00:02.5]} 39... g5 {[%clk 0:00:29]} 40. Ne2 {[%clk 0:00:02.9]}
40... Nc5 {[%clk 0:00:27.9]} 41. Nd4 {[%clk 0:00:02.5]} 41... g4+ {[%clk
0:00:27]} 42. Ke2 {[%clk 0:00:02.2]} 42... Ne4 {[%clk 0:00:25.4]} 43. Rc2 {[%clk
0:00:02.2]} 43... Nxg3+ {[%clk 0:00:25.2]} 44. Kf2 {[%clk 0:00:02.8]} 44... Ne4+
{[%clk 0:00:25.6]} 45. Kg2 {[%clk 0:00:03.4]} 45... Kf6 {[%clk 0:00:25.3]} 46.
b4 {[%clk 0:00:02.9]} 46... axb4 {[%clk 0:00:25.1]} 47. axb4 {[%clk 0:00:03.8]}
47... Nd6 {[%clk 0:00:23.8]} 48. Rd2 {[%clk 0:00:02.9]} 48... Rxe3 {[%clk
0:00:23.6]} 49. Nxc6 {[%clk 0:00:03.1]} 49... Ne4 {[%clk 0:00:21.9]} 50. Rc2
{[%clk 0:00:01.3]} 50... bxc6 {[%clk 0:00:22.4]} 51. Rxc6+ {[%clk 0:00:02.1]}
51... Ke5 {[%clk 0:00:23]} 52. Rxh6 {[%clk 0:00:02.3]} 52... Kf4 {[%clk
0:00:23.7]} 53. Kf1 {[%clk 0:00:02.2]} 53... Ng3+ {[%clk 0:00:23.5]} 54. Kf2
{[%clk 0:00:02.1]} 54... Re2+ {[%clk 0:00:23.8]} 55. Kg1 {[%clk 0:00:02.6]}
55... Kf3 {[%clk 0:00:24.4]} 56. b5 {[%clk 0:00:02.6]} 56... Rg2# {[%clk
0:00:25]} 0-1

[Event "Late-Titled-Tuesday-Blitz-September-12-2023"]
[Site "Chess.com"]
[Date "2023.09.12"]
[Round "4"]
[White "FredyMatsuura"]
[Black "SCIM"]
[Result "1-0"]
[WhiteElo "2346"]
[BlackElo "2581"]
[TimeControl "180+1"]
[EndTime "14:37:39 PDT"]
[Termination "FredyMatsuura won by checkmate"]

1. d4 {[%clk 0:03:00.9]} 1... d5 {[%clk 0:02:57.9]} 2. c4 {[%clk 0:02:59.1]}
2... c6 {[%clk 0:02:56]} 3. Nc3 {[%clk 0:02:57.7]} 3... Nf6 {[%clk 0:02:50.6]}
4. e3 {[%clk 0:02:56.1]} 4... e6 {[%clk 0:02:46.1]} 5. Nf3 {[%clk 0:02:55.7]}
5... Nbd7 {[%clk 0:02:45.4]} 6. Bd3 {[%clk 0:02:55.8]} 6... Bd6 {[%clk
0:02:30.7]} 7. O-O {[%clk 0:02:54.2]} 7... O-O {[%clk 0:02:24.8]} 8. b3 {[%clk
0:02:51.9]} 8... b6 {[%clk 0:02:22.7]} 9. Bb2 {[%clk 0:02:51.6]} 9... Bb7 {[%clk
0:02:21.9]} 10. e4 {[%clk 0:02:45.6]} 10... dxe4 {[%clk 0:02:18]} 11. Nxe4
{[%clk 0:02:45]} 11... Nxe4 {[%clk 0:02:18.9]} 12. Bxe4 {[%clk 0:02:44.7]} 12...
Nf6 {[%clk 0:02:19.2]} 13. Bc2 {[%clk 0:02:43]} 13... c5 {[%clk 0:02:19.3]} 14.
Qe2 {[%clk 0:02:38.7]} 14... Bxf3 {[%clk 0:02:10.4]} 15. Qxf3 {[%clk 0:02:36.8]}
15... cxd4 {[%clk 0:02:11.3]} 16. Bxd4 {[%clk 0:02:03.7]} 16... Bxh2+ {[%clk
0:02:09.2]} 17. Kxh2 {[%clk 0:02:04.6]} 17... Qxd4 {[%clk 0:02:08.9]} 18. Rad1
{[%clk 0:02:03.7]} 18... Qe5+ {[%clk 0:01:57.6]} 19. Kg1 {[%clk 0:02:00.8]}
19... Rad8 {[%clk 0:01:55.8]} 20. Rfe1 {[%clk 0:01:53.5]} 20... Qb2 {[%clk
0:01:47.6]} 21. Qe2 {[%clk 0:01:52.1]} 21... Qc3 {[%clk 0:01:39]} 22. Bb1 {[%clk
0:01:32.6]} 22... g6 {[%clk 0:01:30.6]} 23. Rc1 {[%clk 0:01:27.6]} 23... Qd2
{[%clk 0:01:25.3]} 24. Qf3 {[%clk 0:01:26.4]} 24... Kg7 {[%clk 0:01:20.5]} 25.
Rcd1 {[%clk 0:01:25.2]} 25... Qa5 {[%clk 0:01:15.8]} 26. Qb7 {[%clk 0:01:16.4]}
26... h5 {[%clk 0:00:59.7]} 27. Qf3 {[%clk 0:01:07.8]} 27... Rd2 {[%clk
0:00:50.4]} 28. Rxd2 {[%clk 0:01:01.2]} 28... Qxd2 {[%clk 0:00:45.7]} 29. Rd1
{[%clk 0:01:00.7]} 29... Qa5 {[%clk 0:00:40.8]} 30. Qd3 {[%clk 0:00:59.6]} 30...
Qc5 {[%clk 0:00:34.2]} 31. Qc3 {[%clk 0:00:54.9]} 31... Qe7 {[%clk 0:00:31.3]}
32. b4 {[%clk 0:00:49.7]} 32... Rd8 {[%clk 0:00:30.3]} 33. Rxd8 {[%clk
0:00:46.3]} 33... Qxd8 {[%clk 0:00:31.2]} 34. Bc2 {[%clk 0:00:45.8]} 34... Qc7
{[%clk 0:00:26.6]} 35. c5 {[%clk 0:00:41.9]} 35... bxc5 {[%clk 0:00:25.5]} 36.
bxc5 {[%clk 0:00:42.3]} 36... e5 {[%clk 0:00:23.1]} 37. Qc4 {[%clk 0:00:40.8]}
37... Nd7 {[%clk 0:00:16.1]} 38. c6 {[%clk 0:00:37.6]} 38... Nb6 {[%clk
0:00:15.3]} 39. Qc5 {[%clk 0:00:35.9]} 39... Kf6 {[%clk 0:00:14.5]} 40. a4
{[%clk 0:00:34.1]} 40... a5 {[%clk 0:00:12.7]} 41. Bb3 {[%clk 0:00:30.1]} 41...
Nc8 {[%clk 0:00:11.4]} 42. Bd5 {[%clk 0:00:25.9]} 42... Nd6 {[%clk 0:00:11.1]}
43. Qa3 {[%clk 0:00:20.1]} 43... Ke7 {[%clk 0:00:11.5]} 44. Qe3 {[%clk
0:00:19.2]} 44... Nf5 {[%clk 0:00:08.8]} 45. Qc5+ {[%clk 0:00:17.9]} 45... Qd6
{[%clk 0:00:07.8]} 46. Qxa5 {[%clk 0:00:18]} 46... Nd4 {[%clk 0:00:04.6]} 47.
Qa7+ {[%clk 0:00:17.9]} 47... Kd8 {[%clk 0:00:03.9]} 48. Qxf7 {[%clk 0:00:17.9]}
48... Qc5 {[%clk 0:00:03.2]} 49. Qd7# {[%clk 0:00:16.9]} 1-0

[Event "Late-Titled-Tuesday-Blitz-September-12-2023"]
[Site "Chess.com"]
[Date "2023.09.12"]
[Round "4"]
[White "Bauman_Guy"]
[Black "BigAl"]
[Result "1-0"]
[WhiteElo "2901"]
[BlackElo "2545"]
[TimeControl "180+1"]
[EndTime "14:37:41 PDT"]
[Termination "Bauman_Guy won by resignation"]

1. e4 {[%clk 0:03:00.9]} 1... c6 {[%clk 0:03:00.3]} 2. d4 {[%clk 0:03:00.4]}
2... d5 {[%clk 0:03:01.2]} 3. e5 {[%clk 0:03:01.3]} 3... Bf5 {[%clk 0:03:01.6]}
4. h4 {[%clk 0:03:01.2]} 4... c5 {[%clk 0:03:01.7]} 5. dxc5 {[%clk 0:02:54.5]}
5... Nc6 {[%clk 0:03:01]} 6. Nf3 {[%clk 0:02:52.5]} 6... e6 {[%clk 0:02:51.9]}
7. Be3 {[%clk 0:02:52.2]} 7... Bg4 {[%clk 0:02:48.7]} 8. c3 {[%clk 0:02:51.6]}
8... Nge7 {[%clk 0:02:48.7]} 9. Nbd2 {[%clk 0:02:44]} 9... Nf5 {[%clk
0:02:39.8]} 10. Bb5 {[%clk 0:02:37.5]} 10... Nxe3 {[%clk 0:02:36]} 11. fxe3
{[%clk 0:02:38.4]} 11... Bxf3 {[%clk 0:02:17.1]} 12. Qxf3 {[%clk 0:02:28.9]}
12... Bxc5 {[%clk 0:02:13.4]} 13. Nb3 {[%clk 0:02:28.6]} 13... Be7 {[%clk
0:02:09.4]} 14. Nd4 {[%clk 0:02:23.9]} 14... O-O {[%clk 0:02:07.4]} 15. Bxc6
{[%clk 0:02:21.1]} 15... bxc6 {[%clk 0:02:02.3]} 16. Nxc6 {[%clk 0:02:19.9]}
16... Qc7 {[%clk 0:01:41.6]} 17. Nxe7+ {[%clk 0:02:06.6]} 17... Qxe7 {[%clk
0:01:41.8]} 18. e4 {[%clk 0:02:02.9]} 18... Rab8 {[%clk 0:01:32.6]} 19. exd5
{[%clk 0:01:58.9]} 19... exd5 {[%clk 0:01:31.3]} 20. O-O-O {[%clk 0:01:51.5]}
20... Qxe5 {[%clk 0:00:55.9]} 21. Rxd5 {[%clk 0:01:46]} 21... Qe6 {[%clk
0:00:49.5]} 22. Kb1 {[%clk 0:01:32.5]} 22... a5 {[%clk 0:00:19.8]} 23. Rhd1
{[%clk 0:01:20.6]} 23... a4 {[%clk 0:00:19.9]} 24. a3 {[%clk 0:01:20.1]} 24...
h6 {[%clk 0:00:20.3]} 25. Qd3 {[%clk 0:01:07.5]} 25... Qe7 {[%clk 0:00:18.9]}
26. Ka2 {[%clk 0:01:03.7]} 26... Qxh4 {[%clk 0:00:18.9]} 27. Rd4 {[%clk
0:01:01.9]} 27... Qf6 {[%clk 0:00:18.1]} 28. Rxa4 {[%clk 0:00:54.5]} 28... Qe6+
{[%clk 0:00:18.3]} 29. Qc4 {[%clk 0:00:44.9]} 29... Qb6 {[%clk 0:00:16.5]} 30.
Rb4 {[%clk 0:00:43.8]} 30... Qg6 {[%clk 0:00:15.6]} 31. g4 {[%clk 0:00:37.7]}
31... Rbe8 {[%clk 0:00:15.4]} 32. Qd3 {[%clk 0:00:30.6]} 32... Qg5 {[%clk
0:00:15.4]} 33. Rb5 {[%clk 0:00:29.7]} 33... Qe7 {[%clk 0:00:14.4]} 34. Qc4
{[%clk 0:00:25.1]} 34... Rc8 {[%clk 0:00:13.9]} 35. Qb3 {[%clk 0:00:24.3]} 35...
Qe2 {[%clk 0:00:13.6]} 36. Rb4 {[%clk 0:00:18.8]} 36... Rfe8 {[%clk 0:00:13.8]}
37. Rf4 {[%clk 0:00:17]} 37... Qh2 {[%clk 0:00:13.6]} 38. Qxf7+ {[%clk
0:00:16.1]} 38... Kh8 {[%clk 0:00:13.5]} 39. Rd7 {[%clk 0:00:14.9]} 39... Rg8
{[%clk 0:00:13.1]} 40. g5 {[%clk 0:00:14.1]} 40... Rb8 {[%clk 0:00:13.6]} 41.
Rb4 {[%clk 0:00:14.1]} 41... Rbf8 {[%clk 0:00:12.8]} 42. Qg6 {[%clk 0:00:11.2]}
42... Qh3 {[%clk 0:00:11.9]} 43. Rbb7 {[%clk 0:00:09.6]} 43... h5 {[%clk
0:00:10.6]} 44. Qh6+ {[%clk 0:00:08.9]} 1-0

[Event "Late-Titled-Tuesday-Blitz-September-12-2023"]
[Site "Chess.com"]
[Date "2023.09.12"]
[Round "4"]
[White "ValeriyGrinev"]
[Black "AlexanderL"]
[Result "0-1"]
[WhiteElo "2544"]
[BlackElo "2853"]
[TimeControl "180+1"]
[EndTime "14:37:42 PDT"]
[Termination "AlexanderL won on time"]

1. Nf3 {[%clk 0:02:58.9]} 1... Nf6 {[%clk 0:02:57.7]} 2. c4 {[%clk 0:02:57.9]}
2... b6 {[%clk 0:02:54.8]} 3. Nc3 {[%clk 0:02:57.6]} 3... Bb7 {[%clk 0:02:55.2]}
4. d4 {[%clk 0:02:57.1]} 4... g6 {[%clk 0:02:55]} 5. Bg5 {[%clk 0:02:55.4]} 5...
Bg7 {[%clk 0:02:53.8]} 6. e3 {[%clk 0:02:53.7]} 6... Ne4 {[%clk 0:02:47.9]} 7.
Bf4 {[%clk 0:02:43.7]} 7... Nxc3 {[%clk 0:02:47.6]} 8. bxc3 {[%clk 0:02:43.2]}
8... d6 {[%clk 0:02:47.4]} 9. h4 {[%clk 0:02:42.2]} 9... h6 {[%clk 0:02:46.4]}
10. Bd3 {[%clk 0:02:40.5]} 10... Nd7 {[%clk 0:02:45.9]} 11. Qc2 {[%clk
0:02:36.2]} 11... e5 {[%clk 0:02:44.8]} 12. Bxg6 {[%clk 0:02:30.5]} 12... exf4
{[%clk 0:02:42.5]} 13. exf4 {[%clk 0:02:25.4]} 13... Qe7+ {[%clk 0:02:36.2]} 14.
Kd1 {[%clk 0:02:24.9]} 14... O-O-O {[%clk 0:02:33.7]} 15. Re1 {[%clk 0:02:19.2]}
15... Qf6 {[%clk 0:02:33.2]} 16. Bf5 {[%clk 0:02:19.4]} 16... Kb8 {[%clk
0:02:27.4]} 17. a4 {[%clk 0:02:10.7]} 17... a5 {[%clk 0:02:19.7]} 18. Kc1 {[%clk
0:02:04.9]} 18... Nf8 {[%clk 0:02:15.4]} 19. Kb2 {[%clk 0:02:02.4]} 19... Ne6
{[%clk 0:02:15.4]} 20. Bxe6 {[%clk 0:01:59.4]} 20... fxe6 {[%clk 0:02:15]} 21.
Re3 {[%clk 0:01:52]} 21... Qxf4 {[%clk 0:02:11.2]} 22. Rxe6 {[%clk 0:01:49]}
22... Bxf3 {[%clk 0:02:09.8]} 23. gxf3 {[%clk 0:01:48.9]} 23... Qxf3 {[%clk
0:02:10.7]} 24. Rae1 {[%clk 0:01:47.7]} 24... Qc6 {[%clk 0:02:05.8]} 25. Kb3
{[%clk 0:01:38.2]} 25... Rhf8 {[%clk 0:01:51.7]} 26. Qg6 {[%clk 0:01:24]} 26...
Bh8 {[%clk 0:01:34.6]} 27. R1e2 {[%clk 0:01:20.1]} 27... Qf3 {[%clk 0:01:12.1]}
28. R6e3 {[%clk 0:01:01.1]} 28... Qf5 {[%clk 0:01:09.6]} 29. Qg2 {[%clk
0:01:01.2]} 29... Qb1+ {[%clk 0:01:06.8]} 30. Rb2 {[%clk 0:01:00.8]} 30... Qd1+
{[%clk 0:01:06.7]} 31. Rc2 {[%clk 0:00:57.6]} 31... Rde8 {[%clk 0:01:03]} 32. c5
{[%clk 0:00:32.9]} 32... dxc5 {[%clk 0:00:58.1]} 33. dxc5 {[%clk 0:00:32]} 33...
Rxe3 {[%clk 0:00:56]} 34. fxe3 {[%clk 0:00:31.3]} 34... Qf3 {[%clk 0:00:50.9]}
35. cxb6 {[%clk 0:00:19.9]} 35... cxb6 {[%clk 0:00:39.2]} 36. Qh2+ {[%clk
0:00:17.5]} 36... Kb7 {[%clk 0:00:37.1]} 37. Qd6 {[%clk 0:00:18]} 37... Qf7+
{[%clk 0:00:34.2]} 38. Kb2 {[%clk 0:00:18.5]} 38... Rc8 {[%clk 0:00:32.9]} 39.
e4 {[%clk 0:00:17.4]} 39... Qe8 {[%clk 0:00:22.8]} 40. Qxh6 {[%clk 0:00:16.9]}
40... Qxe4 {[%clk 0:00:19.4]} 41. Qd2 {[%clk 0:00:14.5]} 41... Qb4+ {[%clk
0:00:18.7]} 42. Kc1 {[%clk 0:00:13.5]} 42... Bxc3 {[%clk 0:00:18.3]} 43. Qd7+
{[%clk 0:00:13.1]} 43... Rc7 {[%clk 0:00:18.4]} 44. Qd5+ {[%clk 0:00:13.7]}
44... Ka7 {[%clk 0:00:18.7]} 45. Kd1 {[%clk 0:00:12.6]} 45... Qg4+ {[%clk
0:00:16.2]} 46. Kc1 {[%clk 0:00:11.8]} 46... Qg1+ {[%clk 0:00:15.3]} 47. Qd1
{[%clk 0:00:11]} 47... Bd2+ {[%clk 0:00:12.1]} 48. Kxd2 {[%clk 0:00:10.5]} 48...
Rd7+ {[%clk 0:00:12.1]} 49. Kc3 {[%clk 0:00:11.2]} 49... Qxd1 {[%clk 0:00:11.5]}
50. Kb2 {[%clk 0:00:09.9]} 50... Rd2 {[%clk 0:00:11.7]} 51. Rxd2 {[%clk
0:00:01.4]} 51... Qxd2+ {[%clk 0:00:12.6]} 0-1

[Event "Late-Titled-Tuesday-Blitz-September-12-2023"]
[Site "Chess.com"]
[Date "2023.09.12"]
[Round "4"]
[White "SpeedofLight0"]
[Black "jcibarra"]
[Result "1/2-1/2"]
[WhiteElo "3100"]
[BlackElo "2930"]
[TimeControl "180+1"]
[EndTime "14:37:47 PDT"]
[Termination "Game drawn by repetition"]

1. e4 {[%clk 0:03:00.9]} 1... c5 {[%clk 0:03:00.1]} 2. Nc3 {[%clk 0:03:00.4]}
2... a6 {[%clk 0:02:59.3]} 3. f4 {[%clk 0:03:00.1]} 3... b5 {[%clk 0:02:59.7]}
4. Nf3 {[%clk 0:03:00.4]} 4... Bb7 {[%clk 0:03:00.3]} 5. d3 {[%clk 0:03:00.7]}
5... e6 {[%clk 0:03:00.9]} 6. g3 {[%clk 0:03:01]} 6... d5 {[%clk 0:03:01.2]} 7.
Qe2 {[%clk 0:03:00.6]} 7... Nc6 {[%clk 0:02:55.6]} 8. Bg2 {[%clk 0:02:38.1]}
8... Nd4 {[%clk 0:02:53]} 9. Qf2 {[%clk 0:02:36.9]} 9... Nf6 {[%clk 0:02:36.8]}
10. Nxd4 {[%clk 0:02:31.9]} 10... cxd4 {[%clk 0:02:35.9]} 11. Qxd4 {[%clk
0:02:31.9]} 11... b4 {[%clk 0:02:24.8]} 12. e5 {[%clk 0:02:17.9]} 12... Nd7
{[%clk 0:02:24.3]} 13. Na4 {[%clk 0:02:17.5]} 13... Bc6 {[%clk 0:02:13.5]} 14.
b3 {[%clk 0:02:16.7]} 14... Bxa4 {[%clk 0:02:12.1]} 15. bxa4 {[%clk 0:02:17.6]}
15... Rc8 {[%clk 0:02:12.1]} 16. Qb2 {[%clk 0:02:11.7]} 16... Qa5 {[%clk
0:02:01.8]} 17. O-O {[%clk 0:02:00.6]} 17... Qxa4 {[%clk 0:01:55.5]} 18. Rf2
{[%clk 0:01:59.8]} 18... g6 {[%clk 0:01:29.2]} 19. Bf1 {[%clk 0:01:55.8]} 19...
Rc3 {[%clk 0:01:24.4]} 20. d4 {[%clk 0:01:43.1]} 20... Nb6 {[%clk 0:01:21.4]}
21. a3 {[%clk 0:01:37.7]} 21... Rxa3 {[%clk 0:01:11]} 22. Rxa3 {[%clk
0:01:31.2]} 22... Qxa3 {[%clk 0:01:11.3]} 23. Qb1 {[%clk 0:01:07.8]} 23... Qa4
{[%clk 0:01:09.4]} 24. c3 {[%clk 0:01:01.5]} 24... Be7 {[%clk 0:00:44.2]} 25.
Ra2 {[%clk 0:00:54.6]} 25... Qc6 {[%clk 0:00:33.5]} 26. Rxa6 {[%clk 0:00:52.6]}
26... O-O {[%clk 0:00:32.5]} 27. cxb4 {[%clk 0:00:51.4]} 27... Rc8 {[%clk
0:00:25.6]} 28. Bd2 {[%clk 0:00:42.9]} 28... Qb7 {[%clk 0:00:23.5]} 29. Qa2
{[%clk 0:00:22.5]} 29... Bd8 {[%clk 0:00:19.8]} 30. Ra7 {[%clk 0:00:17.6]} 30...
Qb8 {[%clk 0:00:20.2]} 31. Be1 {[%clk 0:00:13.4]} 31... Nc4 {[%clk 0:00:19.6]}
32. Qa6 {[%clk 0:00:11.4]} 32... Bb6 {[%clk 0:00:19]} 33. Rb7 {[%clk 0:00:11.9]}
33... Bxd4+ {[%clk 0:00:18.8]} 34. Kh1 {[%clk 0:00:12.4]} 34... Qa8 {[%clk
0:00:18.5]} 35. Qxa8 {[%clk 0:00:05.1]} 35... Rxa8 {[%clk 0:00:19.4]} 36. Bxc4
{[%clk 0:00:03.4]} 36... dxc4 {[%clk 0:00:18]} 37. Rd7 {[%clk 0:00:04]} 37...
Bb2 {[%clk 0:00:14]} 38. Kg2 {[%clk 0:00:03]} 38... Rc8 {[%clk 0:00:09.6]} 39.
Rd2 {[%clk 0:00:01.9]} 39... Bc3 {[%clk 0:00:08.8]} 40. Re2 {[%clk 0:00:02.4]}
40... Bxe1 {[%clk 0:00:05.3]} 41. Rxe1 {[%clk 0:00:03.3]} 41... Rb8 {[%clk
0:00:05.6]} 42. Rb1 {[%clk 0:00:03.6]} 42... c3 {[%clk 0:00:06]} 43. Rc1 {[%clk
0:00:04.1]} 43... Rxb4 {[%clk 0:00:05.6]} 44. Rxc3 {[%clk 0:00:04.5]} 44... Rb2+
{[%clk 0:00:06.3]} 45. Kh3 {[%clk 0:00:04.6]} 45... h5 {[%clk 0:00:07]} 46. Rc7
{[%clk 0:00:04.4]} 46... Kg7 {[%clk 0:00:07]} 47. Rd7 {[%clk 0:00:04.9]} 47...
Rc2 {[%clk 0:00:07.4]} 48. Rd8 {[%clk 0:00:05.2]} 48... Rb2 {[%clk 0:00:07.8]}
49. Rd7 {[%clk 0:00:05.8]} 49... Rc2 {[%clk 0:00:08.2]} 50. Rd8 {[%clk
0:00:06.3]} 50... Rc7 {[%clk 0:00:07.5]} 51. Rd6 {[%clk 0:00:06.2]} 51... Rc2
{[%clk 0:00:07.8]} 52. Ra6 {[%clk 0:00:06.5]} 52... Rb2 {[%clk 0:00:08.1]} 53.
Ra7 {[%clk 0:00:07]} 53... Rc2 {[%clk 0:00:08.3]} 54. Ra8 {[%clk 0:00:07.4]}
54... Rb2 {[%clk 0:00:08.5]} 55. Rd8 {[%clk 0:00:07.7]} 55... Rc2 {[%clk
0:00:08.7]} 56. Rd7 {[%clk 0:00:08.3]} 56... Rb2 {[%clk 0:00:08.8]} 57. Rd8
{[%clk 0:00:08.8]} 57... Rc2 {[%clk 0:00:09.1]} 58. Rd7 {[%clk 0:00:09.2]} 58...
Rb2 {[%clk 0:00:09.4]} 59. Rd8 {[%clk 0:00:09.6]} 1/2-1/2

[Event "Late-Titled-Tuesday-Blitz-September-12-2023"]
[Site "Chess.com"]
[Date "2023.09.12"]
[Round "4"]
[White "AleksandrAleksikov"]
[Black "Giorno"]
[Result "0-1"]
[WhiteElo "2257"]
[BlackElo "2459"]
[TimeControl "180+1"]
[EndTime "14:37:47 PDT"]
[Termination "Giorno won on time"]

1. e4 {[%clk 0:03:00.9]} 1... e5 {[%clk 0:02:53]} 2. Nf3 {[%clk 0:03:00]} 2...
Nf6 {[%clk 0:02:52.4]} 3. d4 {[%clk 0:02:58.7]} 3... Nxe4 {[%clk 0:02:49.3]} 4.
Bd3 {[%clk 0:02:58.3]} 4... d5 {[%clk 0:02:48.6]} 5. Nxe5 {[%clk 0:02:57.2]}
5... Nd7 {[%clk 0:02:48.2]} 6. Nxd7 {[%clk 0:02:56.8]} 6... Qxd7 {[%clk
0:02:46.6]} 7. O-O {[%clk 0:02:51.3]} 7... Be7 {[%clk 0:02:45.6]} 8. c4 {[%clk
0:02:49.9]} 8... c6 {[%clk 0:02:42.1]} 9. Re1 {[%clk 0:02:48.6]} 9... O-O {[%clk
0:02:35.8]} 10. Nc3 {[%clk 0:02:31.7]} 10... Nxc3 {[%clk 0:02:30.5]} 11. bxc3
{[%clk 0:02:30.5]} 11... Bf6 {[%clk 0:02:29.2]} 12. Ba3 {[%clk 0:02:18.5]} 12...
Re8 {[%clk 0:02:26.9]} 13. Qf3 {[%clk 0:02:11.5]} 13... b6 {[%clk 0:02:15.9]}
14. cxd5 {[%clk 0:02:06.1]} 14... Bb7 {[%clk 0:02:03.2]} 15. dxc6 {[%clk
0:01:38.7]} 15... Bxc6 {[%clk 0:02:04.1]} 16. Qf5 {[%clk 0:01:37.2]} 16... Qxf5
{[%clk 0:02:00.5]} 17. Bxf5 {[%clk 0:01:36.3]} 17... g6 {[%clk 0:02:01.4]} 18.
Bd3 {[%clk 0:01:32.9]} 18... Kg7 {[%clk 0:01:58.3]} 19. f3 {[%clk 0:01:31.2]}
19... Bd5 {[%clk 0:01:56.7]} 20. Kf2 {[%clk 0:01:23.8]} 20... Rec8 {[%clk
0:01:53.7]} 21. Bb2 {[%clk 0:01:18.3]} 21... Rc7 {[%clk 0:01:50.6]} 22. a4
{[%clk 0:01:17.2]} 22... a6 {[%clk 0:01:46.2]} 23. g3 {[%clk 0:01:11.1]} 23...
Bc4 {[%clk 0:01:42.4]} 24. Be4 {[%clk 0:01:09.6]} 24... Rd8 {[%clk 0:01:41.1]}
25. f4 {[%clk 0:01:07.8]} 25... h5 {[%clk 0:01:40.3]} 26. h3 {[%clk 0:01:04.8]}
26... Be6 {[%clk 0:01:37.8]} 27. Kg2 {[%clk 0:01:04.1]} 27... b5 {[%clk
0:01:27.4]} 28. axb5 {[%clk 0:01:02.8]} 28... axb5 {[%clk 0:01:28.3]} 29. Re2
{[%clk 0:00:56.2]} 29... Bc4 {[%clk 0:01:25.2]} 30. Rd2 {[%clk 0:00:54.5]} 30...
Re8 {[%clk 0:01:23.4]} 31. Bf3 {[%clk 0:00:39.9]} 31... Rce7 {[%clk 0:01:18.5]}
32. Ba3 {[%clk 0:00:35.8]} 32... Re3 {[%clk 0:01:17.5]} 33. Bb4 {[%clk
0:00:35.2]} 33... Be7 {[%clk 0:01:15.3]} 34. Bxe7 {[%clk 0:00:31.3]} 34... R8xe7
{[%clk 0:01:16.2]} 35. Kf2 {[%clk 0:00:30]} 35... Rxc3 {[%clk 0:01:15.3]} 36. d5
{[%clk 0:00:26.8]} 36... Rd7 {[%clk 0:01:10.9]} 37. d6 {[%clk 0:00:25.6]} 37...
Be6 {[%clk 0:01:10.7]} 38. Rb1 {[%clk 0:00:23.4]} 38... Rc5 {[%clk 0:01:02.8]}
39. g4 {[%clk 0:00:22]} 39... hxg4 {[%clk 0:01:01.8]} 40. hxg4 {[%clk 0:00:22]}
40... Bc4 {[%clk 0:01:01.4]} 41. Be2 {[%clk 0:00:18.2]} 41... Rc6 {[%clk
0:00:57.2]} 42. Rbd1 {[%clk 0:00:13.8]} 42... Kf6 {[%clk 0:00:53.2]} 43. Bf3
{[%clk 0:00:12.4]} 43... Ra6 {[%clk 0:00:49]} 44. g5+ {[%clk 0:00:11.7]} 44...
Kg7 {[%clk 0:00:42.4]} 45. Bg4 {[%clk 0:00:10.1]} 45... Rd8 {[%clk 0:00:42.1]}
46. d7 {[%clk 0:00:08.7]} 46... b4 {[%clk 0:00:40.6]} 47. Rd4 {[%clk 0:00:07.6]}
47... Bb3 {[%clk 0:00:32.7]} 48. Rb1 {[%clk 0:00:06.1]} 48... Ra2+ {[%clk
0:00:32.1]} 49. Kg3 {[%clk 0:00:05.4]} 49... Ra3 {[%clk 0:00:31.2]} 50. Rd3
{[%clk 0:00:03.6]} 50... Bc2 {[%clk 0:00:20.8]} 51. Rxa3 {[%clk 0:00:02.8]}
51... bxa3 {[%clk 0:00:21.3]} 52. Ra1 {[%clk 0:00:02.7]} 52... Bf5 {[%clk
0:00:18.8]} 53. Bxf5 {[%clk 0:00:01.1]} 53... gxf5 {[%clk 0:00:19.7]} 0-1